[Event "93rd German Championship 2022"]
[Site "Magdeburg"]
[Date "2022.08.14"]
[Round "1.20"]
[White "Eichstaedt, Mirko"]
[Black "Malek, Daniel"]
[Result "1/2-1/2"]
[ECO "E12"]
[WhiteElo "2223"]
[BlackElo "2355"]
[Annotator "TA"]
[PlyCount "93"]
[EventDate "2022.08.14"]
[EventType "swiss"]
[EventCountry "GER"]
[SourceTitle "playchess.com"]
[Source "ChessBase"]
[SourceQuality "1"]
[TimeControl "40/5400+30:1800+30"]

{[%evp 13,93,4,8,-22,0,0,9,-17,-16,-27,-26,-14,0,0,0,0,0,0,0,0,0,0,0,-7,-8,-22,-5,-5,-6,-10,-9,-4,0,-16,-19,-24,-14,-14,-11,-42,-42,-46,-26,-46,-19,-51,-49,-58,-49,-45,-15,-49,-18,-25,-25,-36,0,-23,0,-19,-19,-34,-29,-69,-22,-58,-8,-16,0,0,0,0,0,0,0,0,0,0,0,0,0,0]} 1. d4 Nf6 2. Nf3 e6 3. c4 b6 4. a3 Bb7 5. Nc3 d5 6. Bg5 Be7 7. Qa4+ Qd7 8. cxd5 {E12: Queen's Indian: Unusual White 4th moves, 4 a3, 4 Nc3 Bb7 5 a3 and 4 Nc3 Bb7 .} (8. Qc2 {keeps more tension.} O-O 9. e3 h6 10. Bf4) 8... Qxa4 9. Nxa4 Nxd5 10. Bxe7 Kxe7 11. Rc1 {[#]} Nd7 $146 ({Predecessor:} 11... Rc8 12. e3 Nd7 13. Kd2 N5f6 14. Bd3 c5 15. dxc5 bxc5 16. b3 Rab8 17. Bc4 Ne4+ {½-½ (91) Tosic,M (2505)-Gligoric,S (2480) Belgrade 1998}) 12. e3 Rac8 13. b4 {Inhibits c5.} c5 14. dxc5 bxc5 15. Nxc5 Nxc5 16. bxc5 Rc7 $1 17. Bd3 Rhc8 18. Kd2 ({But not} 18. Bxh7 g6 19. Ng5 Nf6 $17) 18... Nf6 19. c6 (19. Nd4 {is more complex.} Bxg2 20. Rhg1 Bb7 21. c6) 19... Rxc6 20. Rxc6 Rxc6 21. Rb1 Rc7 22. Rb4 g6 23. Rf4 Nd7 24. Rc4 Rxc4 25. Bxc4 $11 {[%mdl 4096] Endgame KBN-KBN} Kd6 26. Bf1 Bxf3 27. gxf3 $15 {KB-KN} g5 28. Be2 Kc5 29. Kc3 h6 30. Kb3 Nb6 31. Kc3 f5 32. Kb3 a5 33. Kc3 Nd5+ 34. Kd2 f4 35. Bf1 Ne7 36. Kc3 Nf5 37. Kd2 Nd6 38. Kc3 e5 (38... h5 $15 {is more appropriate.}) 39. Bd3 fxe3 ({Black should play} 39... h5 $15) 40. fxe3 $11 {The position is equal.} e4 41. fxe4 Nf7 42. Be2 Ne5 43. h3 {Inhibits g4.} Nf7 44. Bg4 Ne5 45. Be2 Nf7 46. Bg4 Ne5 47. Be2 {Weighted Error Value: White=0.10 (very precise) /Black=0.09 (flawless)} 1/2-1/2

[Event "93rd German Championship 2022"]
[Site "Magdeburg"]
[Date "2022.08.14"]
[Round "1.21"]
[White "Becker, Stefan"]
[Black "Arnold, Max"]
[Result "0-1"]
[ECO "C41"]
[WhiteElo "2101"]
[BlackElo "2350"]
[Annotator "TA"]
[PlyCount "77"]
[EventDate "2022.08.14"]
[EventType "swiss"]
[EventCountry "GER"]
[SourceTitle "playchess.com"]
[Source "ChessBase"]
[SourceQuality "1"]
[TimeControl "40/5400+30:1800+30"]

{[%evp 16,77,50,50,43,25,43,12,1,0,0,0,4,0,27,7,19,0,48,41,68,68,81,49,128,129,151,87,64,116,673,643,589,54,47,11,181,62,50,39,75,63,56,37,146,146,127,68,125,0,2,14,10,0,161,64,53,-20,-6,-41,-29,-39,0,-72]} 1. e4 {[%emt 0:00:05]} d6 {[%emt 0:00:27]} 2. d4 {[%emt 0:00:19]} Nf6 {[%emt 0:00:08]} 3. Nc3 {[%emt 0:00:07]} e5 {[%emt 0:00:18]} 4. Nf3 {[%emt 0:00:12]} Nbd7 {[%emt 0:00:19]} 5. Bc4 {[%emt 0:00:29]} Be7 {[%emt 0:00:19]} 6. O-O {[%emt 0:01:29]} O-O {[%emt 0:00:15]} 7. Re1 {[%emt 0:03:30]} c6 {[%emt 0:00:45]} 8. a4 {[%emt 0:00:22][%cal Ba2a4,Ba4a5][%mdl 32]} h6 {[%emt 0:01:05] is cutting edge theory.} 9. a5 {[%emt 0:03:39]} Qc7 {[%emt 0:04:48] C41: Philidor Defence.} 10. h3 {[%emt 0:03:05]} Re8 {[%emt 0:00:59]} 11. b3 {[%emt 0:07:24]} exd4 {[%emt 0:08:37]} 12. Nxd4 {[%emt 0:02:46]} Bf8 {[%emt 0:08:30]} 13. Bb2 {[%emt 0:11:26]} Ne5 {[%emt 0:11:41]} 14. Bf1 {[%emt 0:03:13] [#]} Bd7 $146 {[%emt 0:07:26]} ({Predecessor:} 14... Ng6 15. g3 Bd7 16. Bg2 b5 17. axb6 axb6 18. Rxa8 Rxa8 19. Qd2 {½-½ (19) Karolyi,T (2395)-Lengyel,L (2385) Hungary 1994}) 15. f4 {[%emt 0:11:16]} Ng6 {[%emt 0:01:16]} 16. Qf3 {[%emt 0:00:09]} Rad8 {[%emt 0:08:31]} (16... b5 $11 {is superior.}) 17. Kh1 {[%emt 0:06:05]} a6 {[%emt 0:02:47]} 18. Bd3 {[%emt 0:09:15]} Bc8 {[%emt 0:08:13]} 19. Rf1 {[%emt 0:08:30]} d5 {[%emt 0:04:10]} (19... Nd7 $14) 20. e5 $36 {[%emt 0:01:59][%mdl 2048] White is really pushing.} Nd7 {[%emt 0:01:32]} 21. Qg3 {[%emt 0:05:54]} (21. Na4 $142 $1) 21... Ne7 {[%emt 0:03:41]} 22. e6 {[%emt 0:05:37] Strongly threatening exf7+.} Nc5 $2 {[%emt 0:00:39][%mdl 8192]} (22... Nf6 $16) 23. exf7+ $18 {[%emt 0:00:06]} Kxf7 {[%emt 0:00:22]} 24. Be2 {[%emt 0:00:37]} ({White has to play} 24. Bh7 $1 $18) 24... g6 {[%emt 0:05:30]} 25. Nf3 {[%emt 0:02:50] And now b4 would win.} (25. Qf2 $5 {[%cal Rf4f5]} Nf5 26. b4 Nxd4 27. Qxd4 $14) 25... Bf5 $2 {[%emt 0:02:01]} (25... Kg8 $11 {and Black stays safe.}) 26. Ne5+ {[%emt 0:01:18]} (26. Qf2 $1 $18 Ne6 27. g4 (27. Ne5+ Kg8 $11) 27... Bxc2 28. f5 gxf5 29. gxf5 Nxf5 30. Nh4 (30. Ne1 $2 Bc5 $19)) 26... Kg8 $14 {[%emt 0:00:43]} 27. b4 {[%emt 0:01:02]} Nd7 {[%emt 0:02:35]} 28. Bg4 {[%emt 0:05:14]} Nxe5 {[%emt 0:03:45]} 29. fxe5 {[%emt 0:00:02] aiming for Bxf5.} Kh7 {[%emt 0:00:34]} (29... Bxg4 $14 30. Qxg4 (30. hxg4 c5 $14) 30... Qxe5) 30. Rae1 {[%emt 0:01:20]} Bg7 {[%emt 0:00:31]} 31. Na4 {[%emt 0:00:40]} ({Better is} 31. Ne2 $16) 31... h5 {[%emt 0:03:57]} ({Black should play} 31... d4 $14) 32. Bd1 {[%emt 0:01:10]} (32. Qh4 $16) 32... Rf8 $11 {[%emt 0:02:41]} 33. Nc5 {[%emt 0:00:12] Inhibits Be4. Threatens to win with Qg5.} Bc8 $1 {[%emt 0:00:55]} 34. Qd3 {[%emt 0:02:24]} Nf5 $2 {[%emt 0:01:55] [#]} (34... Rxf1+ $1 $11 {and Black is okay.} 35. Qxf1 Nf5) 35. g4 {[%emt 0:00:15]} ({White should try} 35. Bxh5 $1 $18 {[%mdl 512]} gxh5 36. g4 hxg4 37. hxg4) 35... hxg4 $14 {[%emt 0:00:46]} 36. Bxg4 {[%emt 0:00:03]} (36. hxg4 $14 Nh6 37. Rxf8 Rxf8 38. Qg3) 36... Rde8 $11 {[%emt 0:01:53][%cal Rg7e5]} 37. Bxf5 {[%emt 0:03:33]} Bxf5 {[%emt 0:00:24]} 38. Qg3 {[%emt 0:00:52]} Qe7 {[%emt 0:02:13]} (38... Bxc2 $5 {[%cal Rf8f1]} 39. Rg1 Bf5 40. Qh4+ Kg8 $17) 39. Kh2 {[%emt 0:00:00] Weighted Error Value: White=0.56/Black=0.52} (39. Rf2 $11 {keeps the balance.}) 0-1

[Event "93rd German Championship 2022"]
[Site "Magdeburg"]
[Date "2022.08.14"]
[Round "1.22"]
[White "Dahl, Christoph"]
[Black "Feidt, Jonas"]
[Result "1/2-1/2"]
[ECO "B12"]
[WhiteElo "2355"]
[BlackElo "1901"]
[Annotator "TA"]
[PlyCount "57"]
[EventDate "2022.08.14"]
[EventType "swiss"]
[EventCountry "GER"]
[SourceTitle "playchess.com"]
[Source "ChessBase"]
[SourceQuality "1"]
[TimeControl "40/5400+30:1800+30"]

{[%evp 13,57,12,26,26,23,29,25,10,14,10,0,0,0,0,0,12,30,24,55,52,53,47,73,41,47,40,49,43,74,16,12,22,18,20,62,0,0,0,0,0,0,0,0,0,0,0]} 1. e4 {[%emt 0:00:02]} c6 {[%emt 0:00:09][%cal Bc7c6,Bc6c5][%mdl 32]} 2. d4 {[%emt 0:00:43]} d5 {[%emt 0:00:09]} 3. e5 {[%emt 0:00:41]} Bf5 {[%emt 0:00:17]} 4. Nf3 {[%emt 0:00:47]} e6 {[%emt 0:00:21]} 5. Be2 {[%emt 0:02:55]} c5 {[%emt 0:00:39]} 6. O-O {[%emt 0:01:44]} Nc6 {[%emt 0:09:12]} 7. c3 {[%emt 0:02:20]} Bg6 {[%emt 0:05:12]} 8. a3 {[%emt 0:02:36] B12: Caro-Kann: Advance Variation.} cxd4 {[%emt 0:03:28]} 9. cxd4 {[%emt 0:00:33]} Nge7 {[%emt 0:01:05]} 10. Nc3 {[%emt 0:01:36] White has an edge.} Nc8 {[%emt 0:04:16]} 11. b4 {[%emt 0:08:52][%cal Bb2b4,Bb4b5][%mdl 32]} Nb6 {[%emt 0:06:10]} 12. Bg5 {[%emt 0:08:02]} Be7 {[%emt 0:05:11]} 13. Bxe7 {[%emt 0:01:23]} Qxe7 {[%emt 0:00:53] [#]} 14. Na4 $146 {[%emt 0:01:49]} ({Predecessor:} 14. Rc1 O-O 15. Na4 Nxa4 16. Qxa4 a6 17. Qb3 Be4 18. Qe3 Bxf3 19. Bxf3 Rfc8 20. Be2 {½-½ (31) Markovic,Z (2353)-Sahil,T (2229) Veliko Gradiste 2017}) 14... Nxa4 {[%emt 0:02:22]} 15. Qxa4 {[%emt 0:00:06]} O-O {[%emt 0:01:44]} 16. b5 {[%emt 0:05:24]} Nb8 {[%emt 0:03:55][%cal Bc6b8,Bb8d7,Bd7b6,Bb6c4][%mdl 32]} 17. Rfc1 {[%emt 0:02:47]} Qd8 {[%emt 0:07:41]} 18. Rc3 {[%emt 0:02:39] White is more active.} Nd7 {[%emt 0:01:13]} 19. Rac1 {[%emt 0:05:36]} Nb6 {[%emt 0:01:04]} 20. Qb4 {[%emt 0:07:37]} Rc8 {[%emt 0:11:53]} 21. a4 {[%emt 0:05:05]} (21. Rxc8 $16 Nxc8 22. a4) 21... Rxc3 $11 {[%emt 0:04:41]} 22. Rxc3 {[%emt 0:00:10]} Bh5 {[%emt 0:08:09]} 23. h3 {[%emt 0:01:32]} Bxf3 {[%emt 0:02:10]} 24. Bxf3 {[%emt 0:04:39]} ({White should try} 24. Rxf3 $14 Qh4 25. g3) 24... Nc4 {[%emt 0:04:47] The position is equal.} 25. Be2 {[%emt 0:01:09]} Qh4 {[%emt 0:01:07]} 26. Bg4 $1 {[%emt 0:09:15]} ({Don't play} 26. Bxc4 Qxd4 27. Rc1 (27. b6 axb6 28. Rc1 h5 $17) 27... Qf4 $15) 26... Qd8 {[%emt 0:07:12]} 27. Be2 {[%emt 0:16:43]} Qh4 {[%emt 0:00:16]} 28. Bg4 $1 {[%emt 0:00:05]} ({But not} 28. Bxc4 Qxd4 29. Rc1 (29. b6 $2 axb6 30. Rc1 h5 $17) 29... Qf4 $15) 28... Qd8 {[%emt 0:00:07]} 29. Be2 {[%emt 0:03:13] Weighted Error Value: White=0.10 (very precise) /Black=0.08 (flawless)} 1/2-1/2

[Event "93rd German Championship 2022"]
[Site "Magdeburg"]
[Date "2022.08.15"]
[Round "2.1"]
[White "Bethke, Richard"]
[Black "Poetsch, Hagen"]
[Result "1-0"]
[ECO "B90"]
[WhiteElo "2381"]
[BlackElo "2500"]
[Annotator "TA"]
[PlyCount "79"]
[EventDate "2022.08.14"]
[EventType "swiss"]
[EventCountry "GER"]
[SourceTitle "playchess.com"]
[Source "ChessBase"]
[SourceQuality "1"]
[TimeControl "40/5400+30:1800+30"]

{[%evp 18,79,16,15,10,8,8,8,11,0,0,-14,-18,-24,29,-38,-33,-40,-28,-53,0,2,0,-25,-14,-37,-41,-73,-23,-106,-102,-189,-214,-211,-109,-331,-321,-381,-349,-438,-280,-349,-280,-466,-437,-448,-435,-575,-502,-446,0,0,29996,29980,29980,29981,29984,29985,29985,29986,29986,29987,29986,29983]} 1. e4 {[%emt 0:00:03]} c5 {[%emt 0:00:07]} 2. Nf3 {[%emt 0:00:05]} d6 {[%emt 0:00:05]} 3. d4 {[%emt 0:00:04]} cxd4 {[%emt 0:00:04]} 4. Nxd4 {[%emt 0:00:04]} Nf6 {[%emt 0:00:05]} 5. Nc3 {[%emt 0:00:05]} a6 {[%emt 0:00:05]} 6. Be3 {[%emt 0:00:05]} e5 {[%emt 0:00:11]} 7. Nf3 {[%emt 0:01:40]} Be7 {[%emt 0:00:26]} 8. Bc4 {[%emt 0:00:27]} O-O {[%emt 0:00:10]} 9. O-O {[%emt 0:00:06]} Nc6 {[%emt 0:00:33]} 10. Qe2 {[%emt 0:03:56]} Na5 {[%emt 0:00:08] B90: Sicilian Najdorf: Unusual White 6th moves, 6 Be3 Ng4 and 6 Be3 e5.} 11. Bb3 {[%emt 0:07:03]} h6 {[%emt 0:00:51]} 12. Rfd1 {[%emt 0:01:39] Hoping for Nxe5.} Nxb3 {[%emt 0:01:06] The position is equal.} 13. axb3 {[%emt 0:03:44]} Bd7 {[%emt 0:01:08]} 14. Na4 {[%emt 0:11:19]} Bxa4 {[%emt 0:14:50]} (14... Nxe4 $2 15. Bb6 Qc8 16. Qxe4 $18) 15. bxa4 {[%emt 0:03:16] [#]} Qc7 $146 {[%emt 0:06:00]} (15... Qc8 $142) ({Predecessor:} 15... Qc8 16. Qd3 Qc6 17. Nd2 b5 18. axb5 axb5 19. c3 Ra4 20. b3 Rxa1 21. Rxa1 Rc8 22. Ra7 Bf8 {½-½ (22) Andriasian,Z (2620)-Zhou,J (2572) Kazan 2013}) 16. c4 {[%emt 0:22:29]} (16. Nh4 $1 $11) 16... Qc6 $15 {[%emt 0:06:47]} 17. Nd2 {[%emt 0:00:21]} Nxe4 {[%emt 0:04:15]} 18. Bxh6 {[%emt 0:00:24]} Nxd2 {[%emt 0:08:31]} ({Black should play} 18... Nxf2 $1 $15 19. Qxf2 gxh6) 19. Qg4 $11 {[%emt 0:10:51][%csl Gh6][%cal Rg4g7]} Bf6 {[%emt 0:00:15]} 20. Rxd2 {[%emt 0:02:05]} b5 {[%emt 0:16:23][%cal Bb7b5,Bb5c4,Bc4c3,Bc3c2][%mdl 32]} 21. Rc1 {[%emt 0:12:28]} Rfd8 {[%emt 0:19:07]} 22. Rd3 {[%emt 0:16:00][%cal Oh6g7] Threatens to win with Bxg7!} Qd7 {[%emt 0:05:10]} (22... Qc8 $17 23. Qh5 (23. Qxc8 Raxc8 24. Be3 Rxc4 $17) 23... bxc4) 23. Qg3 {[%emt 0:01:25] [#]} (23. Qxd7 $11 {keeps the balance.} Rxd7 24. Bd2) 23... e4 $1 $17 {[%emt 0:07:28]} ({Stronger than} 23... bxa4 24. Bg5 Qf5 25. Bxf6 Qxf6 26. Ra3 $15) 24. Rd5 {[%emt 0:01:46] [#]} (24. Rd2 $17) 24... bxc4 $1 $19 {[%emt 0:00:14]} 25. Bg5 {[%emt 0:01:02] White wants to mate with Bxf6.} Be5 {[%emt 0:04:19]} (25... Bxb2 $19 26. Rcd1 Re8) 26. Bf4 {[%emt 0:00:31]} (26. Rxe5 $17 dxe5 27. Bxd8 Rxd8 28. h3) 26... Bxb2 {[%emt 0:02:08]} 27. Rcd1 {[%emt 0:00:31]} Qxa4 {[%emt 0:01:42]} 28. h4 {[%emt 0:00:11]} Bf6 {[%emt 0:00:57] Strongly threatening ...c3.} 29. h5 {[%emt 0:00:38]} c3 {[%emt 0:00:56]} 30. Bh6 $2 {[%emt 0:00:41]} (30. Rc1) 30... Kh8 {[%emt 0:00:52]} 31. Bg5 {[%emt 0:00:29][%cal Bh6g5,Bg5f4,Bf4d6,Bd6c5][%mdl 32] And now Bxf6 would win.} c2 {[%emt 0:00:09]} 32. Rf1 {[%emt 0:00:29]} Qc4 {[%emt 0:00:40]} 33. h6 {[%emt 0:00:31][%cal Og5f6]} Rg8 $2 {[%emt 0:00:47]} (33... Qxd5 $2 {too greedy.} 34. Bxf6 Rg8 35. hxg7+ Kh7 36. Qh4+ Kg6 37. Bb2 $19) (33... Rac8 $19 34. hxg7+ Kg8) 34. hxg7+ $40 {[%emt 0:00:30][%mdl 192] Remove Defender. White has some attack.} Kxg7 $2 {[%emt 0:00:26][%mdl 8192]} (34... Rxg7 $11 35. Bxf6 Qxf1+ 36. Kxf1 (36. Kh2 Qh1+ 37. Kxh1 c1=Q+ $17) 36... c1=Q+ 37. Ke2 Qc2+ 38. Rd2 Qc4+ 39. Ke1 Qc1+ 40. Ke2 Qc4+ 41. Ke1 Qc1+ 42. Ke2 Qc4+) 35. Bf4+ {[%emt 0:00:23] White mates.} Kf8 {[%emt 0:00:23]} 36. Bxd6+ {[%emt 0:00:04]} Ke8 {[%emt 0:00:41]} 37. Qxg8+ {[%emt 0:00:06]} Kd7 {[%emt 0:00:04]} 38. Qxf7+ {[%emt 0:00:42]} Kc6 {[%emt 0:00:20]} 39. Rc5+ Qxc5 {[%emt 0:00:04]} 40. Bxc5 {[%emt 0:00:09] Quite a comeback for White.  Weighted Error Value: White=0.49/Black=0.47} 1-0

[Event "93rd German Championship 2022"]
[Site "Magdeburg"]
[Date "2022.08.15"]
[Round "2.2"]
[White "Pajeken, Jakob Leon"]
[Black "Colpe, Malte"]
[Result "1/2-1/2"]
[ECO "B31"]
[WhiteElo "2434"]
[BlackElo "2369"]
[Annotator "TA"]
[PlyCount "119"]
[EventDate "2022.08.14"]
[EventType "swiss"]
[EventCountry "GER"]
[SourceTitle "playchess.com"]
[Source "ChessBase"]
[SourceQuality "1"]
[TimeControl "40/5400+30:1800+30"]

{[%evp 11,119,27,38,25,49,41,57,45,89,39,64,63,64,61,118,116,113,111,118,117,109,109,108,102,103,104,107,110,100,97,109,90,89,80,92,70,239,33,33,29,33,26,26,32,31,31,39,20,34,34,34,16,34,0,0,0,0,0,0,0,0,0,0,0,0,0,39,27,35,28,37,39,37,41,42,41,37,41,70,70,70,70,70,70,70,70,70,70,70,70,70,70,70,70,70,0,0,0,0,0,0,0,0,0,0,0,0,0,0,0]} 1. e4 {[%emt 0:00:16]} c5 {[%emt 0:01:26]} 2. Nf3 {[%emt 0:00:11]} Nc6 {[%emt 0:01:57]} 3. Bb5 {[%emt 0:01:54]} g6 {[%emt 0:02:40]} 4. O-O {[%emt 0:00:18]} Bg7 {[%emt 0:00:16]} 5. Bxc6 {[%emt 0:00:20]} dxc6 {[%emt 0:00:22]} 6. d3 {[%emt 0:00:29]} e5 {[%emt 0:01:54]} 7. a4 {[%emt 0:00:27] B31: Sicilian: 2...Nc6 3 Bb5 g6.} Bg4 {[%emt 0:08:32]} 8. Be3 {[%emt 0:10:44]} b6 {[%emt 0:02:58]} 9. Nbd2 {[%emt 0:01:06][%cal Oa4a5] [#] White is slightly better.} Ne7 $146 {[%emt 0:08:27]} ({Predecessor:} 9... Nf6 10. a5 O-O 11. Qb1 Nd7 12. b4 Bxf3 13. Nxf3 cxb4 14. Qxb4 Qc7 15. axb6 axb6 {1-0 (69) Meshkov,Y (2418)-Wassin,S (2299) Durham 2007}) 10. Nc4 {[%emt 0:02:31]} ({White should play} 10. h3 $16 Be6 11. a5) 10... O-O {[%emt 0:02:47]} 11. h3 {[%emt 0:00:42]} Bxf3 {[%emt 0:02:06]} 12. Qxf3 {[%emt 0:00:05]} Qd7 {[%emt 0:23:58] [#]} (12... f5 $14) 13. a5 $1 $16 {[%emt 0:06:59]} Rab8 {[%emt 0:01:27]} 14. Qg3 {[%emt 0:09:54]} Qe6 {[%emt 0:01:33]} 15. axb6 {[%emt 0:01:11]} axb6 {[%emt 0:00:08]} 16. Ra6 {[%emt 0:00:34] White is more active.} b5 {[%emt 0:08:19]} 17. Nd2 {[%emt 0:00:21]} c4 {[%emt 0:01:13]} 18. dxc4 {[%emt 0:00:46]} bxc4 {[%emt 0:00:35]} 19. Bc5 {[%emt 0:00:33]} Rxb2 {[%emt 0:08:28]} 20. Qc3 {[%emt 0:00:53]} Rb5 {[%emt 0:03:16]} 21. Ba3 {[%emt 0:04:16]} Rd8 {[%emt 0:04:06]} 22. Nxc4 {[%emt 0:00:07]} Bf8 {[%emt 0:02:57]} 23. Ne3 {[%emt 0:03:46]} Rd4 $2 {[%emt 0:02:13] [#]} (23... h5 $14) 24. Bxe7 $2 {[%emt 0:07:08]} (24. Ra8 $1 $18) 24... Qxe7 $14 {[%emt 0:00:17]} 25. Rxc6 {[%emt 0:01:37]} Rc5 {[%emt 0:02:48]} 26. Rxc5 {[%emt 0:00:54]} Qxc5 {[%emt 0:00:07]} 27. Qxc5 {[%emt 0:00:40]} Bxc5 {[%emt 0:00:06][%mdl 4096] Endgame KRB-KRN} 28. Ng4 {[%emt 0:01:08]} Bd6 {[%emt 0:03:28]} 29. Nf6+ {[%emt 0:00:59]} Kf8 {[%emt 0:02:02]} 30. Nxh7+ {[%emt 0:04:18]} Ke7 {[%emt 0:00:44]} 31. Ra1 {[%emt 0:00:10]} f6 {[%emt 0:01:01]} 32. Ra7+ {[%emt 0:01:03]} Ke6 {[%emt 0:00:17]} 33. Rg7 {[%emt 0:01:17]} Rxe4 {[%emt 0:00:52]} 34. Rxg6 {[%emt 0:01:05] Hoping for Ng5+.} Re1+ {[%emt 0:00:20]} 35. Kh2 {[%emt 0:00:02]} e4+ $1 {[%emt 0:01:02]} 36. g3 {[%emt 0:00:03]} Be5 {[%emt 0:00:49]} 37. Rg7 {[%emt 0:03:15]} Re2 {[%emt 0:00:42]} 38. Nf8+ {[%emt 0:02:31]} Kd6 {[%emt 0:01:10]} 39. Kg1 {[%emt 0:03:02]} Rxc2 {[%emt 0:00:53]} 40. Rd7+ {[%emt 0:00:42]} Kc6 {[%emt 0:00:15]} 41. Rd8 {[%emt 0:31:00] Black must now prevent Rc8+.} Ra2 {[%emt 0:03:53]} 42. Ng6 {[%emt 0:00:00]} Bd6 {[%emt 0:11:44]} 43. Re8 {[%emt 0:00:00]} f5 {[%emt 0:10:02]} 44. Ne7+ {[%emt 0:00:00]} Bxe7 {[%emt 0:01:36]} 45. Rxe7 {[%emt 0:00:00] Strongly threatening Re5. KR-KR} Kd6 {[%emt 0:00:22] Inhibits Re5.} 46. Re8 {[%emt 0:00:00]} Ra5 {[%emt 0:00:51]} 47. h4 {[%emt 0:00:00]} Kd7 {[%emt 0:00:10]} 48. Rg8 {[%emt 0:00:00]} Ke6 {[%emt 0:00:50]} 49. Rg6+ {[%emt 0:00:00]} Kf7 {[%emt 0:01:20]} 50. Rb6 {[%emt 0:00:00]} Ra1+ {[%emt 0:01:23]} 51. Kg2 {[%emt 0:00:00]} Ra2 {[%emt 0:00:12]} 52. Rb3 {[%emt 0:00:00]} Kg6 {[%emt 0:00:32]} 53. g4 {[%emt 0:00:00]} (53. Kf1 $14) 53... fxg4 $11 {[%emt 0:01:08] The position is equal.} 54. Kg3 {[%emt 0:00:00]} Re2 {[%emt 0:01:29]} 55. Rb6+ {[%emt 0:00:00]} Kf5 {[%emt 0:00:39]} 56. Rb5+ {[%emt 0:00:00]} Kf6 {[%emt 0:00:21]} 57. Rb3 {[%emt 0:00:27]} Kg6 {[%emt 0:00:19]} 58. Ra3 {[%emt 0:00:13]} Kf5 {[%emt 0:01:06]} 59. Re3 {[%emt 0:00:16]} Rd2 {[%emt 0:00:20]} 60. Re1 {[%emt 0:01:15] Weighted Error Value: White=0.12 (very precise) /Black=0.12 (very precise)} 1/2-1/2

[Event "93rd German Championship 2022"]
[Site "Magdeburg"]
[Date "2022.08.15"]
[Round "2.3"]
[White "Carlstedt, Jonathan"]
[Black "Langheinrich, Ferenc"]
[Result "1/2-1/2"]
[ECO "B01"]
[WhiteElo "2446"]
[BlackElo "2357"]
[Annotator "TA"]
[PlyCount "68"]
[EventDate "2022.08.14"]
[EventType "swiss"]
[EventCountry "GER"]
[SourceTitle "playchess.com"]
[Source "ChessBase"]
[SourceQuality "1"]
[TimeControl "40/5400+30:1800+30"]

{[%evp 9,68,52,69,-2,-2,7,7,-1,29,36,54,22,31,23,34,20,95,84,72,27,46,6,7,8,49,45,85,80,80,80,79,80,80,80,84,82,76,35,35,37,37,-6,26,0,34,0,5,0,12,15,29,0,0,0,0,0,0,0,0,0,0]} 1. e4 {[%emt 0:00:13]} d5 {[%emt 0:06:00]} 2. exd5 {[%emt 0:00:14]} Nf6 {[%emt 0:00:06]} 3. c4 {[%emt 0:05:23]} e6 {[%emt 0:00:10]} 4. dxe6 {[%emt 0:09:35]} Bxe6 {[%emt 0:00:31]} 5. Nf3 {[%emt 0:00:06]} Qe7 {[%emt 0:01:05]} 6. Be2 {[%emt 0:05:14] B01: Scandinavian Defence.} (6. Qe2 $1 $14) 6... Bxc4 $1 $11 {[%emt 0:06:55]} 7. d3 {[%emt 0:00:07]} Ba6 {[%emt 0:10:06] [#]} 8. Nc3 $146 {[%emt 0:02:38]} ({Predecessor:} 8. O-O Nc6 9. Nc3 O-O-O 10. Re1 h6 11. Bf4 Qd7 12. Qb3 Bc5 13. Ne4 Bb6 14. Ne5 Nxe5 15. Bxe5 {0-1 (49) Noack,T (1783)-Bossy,A (2110) Playchess.com INT 2021}) 8... Qd8 {[%emt 0:04:41]} 9. O-O {[%emt 0:19:15]} Be7 {[%emt 0:03:18]} 10. Rb1 {[%emt 0:00:55]} O-O {[%emt 0:10:08]} 11. b4 {[%emt 0:04:59] [#] And now b5 would win.} c6 {[%emt 0:09:10]} 12. a4 {[%emt 0:00:25]} Nd5 {[%emt 0:04:24]} (12... b6 $11 {keeps the balance.}) 13. Nxd5 $16 {[%emt 0:00:53]} Qxd5 {[%emt 0:00:05]} 14. Be3 {[%emt 0:05:27]} (14. Re1 $5 {[%cal Rb4b5]}) 14... Bf6 {[%emt 0:09:07]} 15. Qb3 {[%emt 0:01:51]} Qxb3 {[%emt 0:00:46]} 16. Rxb3 {[%emt 0:00:02] [#] Black must now prevent b5.} b6 {[%emt 0:00:49]} (16... b5 $5 {[%cal Rb5a4]}) 17. Rc1 {[%emt 0:02:02]} Rc8 {[%emt 0:09:14]} 18. Nd4 {[%emt 0:12:43]} Rd8 {[%emt 0:04:21]} 19. Nxc6 {[%emt 0:01:40] White is more active.} Nxc6 {[%emt 0:00:08]} 20. Rxc6 {[%emt 0:00:03]} Bb7 {[%emt 0:00:36]} 21. Rc2 {[%emt 0:05:40]} Rac8 {[%emt 0:03:15]} 22. Rxc8 {[%emt 0:00:28]} Rxc8 {[%emt 0:00:07]} 23. Bf3 {[%emt 0:02:40] Inhibits Bd5.} Bxf3 {[%emt 0:01:06]} 24. gxf3 $14 {[%emt 0:00:02][%mdl 4096] Endgame KRB-KRB} Bd8 {[%emt 0:04:40]} 25. Rb1 {[%emt 0:02:33]} f5 {[%emt 0:01:06]} 26. b5 {[%emt 0:07:15]} Kf7 {[%emt 0:00:38]} 27. Kf1 {[%emt 0:03:01]} Ke6 {[%emt 0:00:48]} 28. Rb4 {[%emt 0:00:55]} Rc2 {[%emt 0:02:49]} 29. Rc4 {[%emt 0:01:05]} Ra2 {[%emt 0:01:31]} 30. f4 {[%emt 0:02:36]} (30. Bf4 $5 {[%cal Rf4b8]}) 30... Ra3 {[%emt 0:02:55] The position is equal.} 31. Ke2 {[%emt 0:00:35]} Ra2+ {[%emt 0:00:11]} 32. Kf1 {[%emt 0:01:21]} Ra3 {[%emt 0:00:56]} 33. Ke2 {[%emt 0:01:59]} Ra2+ {[%emt 0:00:06]} 34. Kf3 {[%emt 0:00:18]} Ra3 {[%emt 0:00:12] Weighted Error Value: White=0.16 (very precise) /Black=0.16 (very precise)} 1/2-1/2